[Event "*** Titled Tuesday Blitz"]
[Site "Chess.com"]
[Date "2019.11.05"]
[Round "6"]
[White "cool4chess"]
[Black "snowlord"]
[Result "1-0"]
[WhiteElo "2571"]
[BlackElo "2715"]
[TimeControl "180+2"]
[EndTime "14:21:18 PST"]
[Termination "cool4chess won by resignation"]

1. e4 {[%clk 0:03:01.9]} 1... e5 {[%clk 0:03:00.7]} 2. Nf3 {[%clk 0:03:01.6]}
2... Nc6 {[%clk 0:03:02.1]} 3. Bb5 {[%clk 0:03:03.1]} 3... a6 {[%clk 0:03:03.3]}
4. Ba4 {[%clk 0:03:04.5]} 4... Nf6 {[%clk 0:03:04.7]} 5. d4 {[%clk 0:03:04.2]}
5... exd4 {[%clk 0:02:59.3]} 6. O-O {[%clk 0:03:04.3]} 6... Be7 {[%clk
0:02:55.8]} 7. Re1 {[%clk 0:03:05]} 7... b5 {[%clk 0:02:45.3]} 8. e5 {[%clk
0:03:04.7]} 8... Nd5 {[%clk 0:02:31.4]} 9. Bb3 {[%clk 0:02:58.1]} 9... Nb6
{[%clk 0:02:32.6]} 10. Nxd4 {[%clk 0:02:35.7]} 10... Nxd4 {[%clk 0:02:30.4]} 11.
Qxd4 {[%clk 0:02:37.6]} 11... c5 {[%clk 0:02:31.5]} 12. Qg4 {[%clk 0:02:39.1]}
12... O-O {[%clk 0:02:31.8]} 13. Bh6 {[%clk 0:02:37.9]} 13... g6 {[%clk
0:02:28.8]} 14. Bxf8 {[%clk 0:02:35.2]} 14... Qxf8 {[%clk 0:02:30.5]} 15. c3
{[%clk 0:02:33]} 15... d5 {[%clk 0:02:26.7]} 16. Qf3 {[%clk 0:02:32.6]} 16...
Bf5 {[%clk 0:02:22.6]} 17. Nd2 {[%clk 0:02:31]} 17... Rd8 {[%clk 0:02:10.2]} 18.
Nf1 {[%clk 0:02:27]} 18... c4 {[%clk 0:02:00.6]} 19. Bd1 {[%clk 0:02:24.3]}
19... d4 {[%clk 0:01:55.3]} 20. cxd4 {[%clk 0:02:22.6]} 20... Rxd4 {[%clk
0:01:57.2]} 21. Ne3 {[%clk 0:02:23.1]} 21... Be6 {[%clk 0:01:39.3]} 22. Bc2
{[%clk 0:02:21]} 22... Bb4 {[%clk 0:01:10.9]} 23. Red1 {[%clk 0:02:20.6]} 23...
Qd8 {[%clk 0:01:02.9]} 24. Qe4 {[%clk 0:02:04.7]} 24... Bd2 {[%clk 0:00:48.8]}
25. Qf3 {[%clk 0:01:58.9]} 25... b4 {[%clk 0:00:42]} 26. Qc6 {[%clk 0:01:24.2]}
26... Kg7 {[%clk 0:00:37.2]} 27. Nf1 {[%clk 0:01:16.6]} 27... Bg5 {[%clk
0:00:30.3]} 28. Qc5 {[%clk 0:00:57.3]} 28... Rxd1 {[%clk 0:00:10.5]} 29. Rxd1
{[%clk 0:00:59.2]} 29... Nd7 {[%clk 0:00:03.9]} 30. Qxb4 {[%clk 0:00:59.5]}
30... Qc7 {[%clk 0:00:04.1]} 31. Qd6 {[%clk 0:00:40.6]} 31... Qa5 {[%clk
0:00:04.9]} 32. a3 {[%clk 0:00:32.7]} 32... Bf4 {[%clk 0:00:06.1]} 33. Ne3
{[%clk 0:00:21.3]} 33... Qxe5 {[%clk 0:00:06.3]} 34. Qxe5+ {[%clk 0:00:22]}
34... Bxe5 {[%clk 0:00:08.2]} 35. Nxc4 {[%clk 0:00:17.2]} 35... Bxc4 {[%clk
0:00:09.3]} 36. Rxd7 {[%clk 0:00:17.4]} 36... Bxb2 {[%clk 0:00:11]} 37. a4
{[%clk 0:00:18.7]} 37... a5 {[%clk 0:00:11.7]} 38. Bd3 {[%clk 0:00:17.1]} 38...
Bb3 {[%clk 0:00:12.2]} 39. Rb7 {[%clk 0:00:17.3]} 1-0

[Event "*** Titled Tuesday Blitz"]
[Site "Chess.com"]
[Date "2019.11.05"]
[Round "6"]
[White "Alexander_Donchenko"]
[Black "ehrenfeld"]
[Result "1-0"]
[WhiteElo "2771"]
[BlackElo "2530"]
[TimeControl "180+2"]
[EndTime "14:21:19 PST"]
[Termination "Alexander_Donchenko won on time"]

1. e4 {[%clk 0:03:01.9]} 1... e5 {[%clk 0:02:59.9]} 2. Nf3 {[%clk 0:03:03.1]}
2... Nc6 {[%clk 0:03:00.9]} 3. Bb5 {[%clk 0:03:04.6]} 3... a6 {[%clk 0:03:01.5]}
4. Ba4 {[%clk 0:03:05.9]} 4... Nf6 {[%clk 0:03:02.5]} 5. O-O {[%clk 0:03:06.6]}
5... Be7 {[%clk 0:03:02.7]} 6. Re1 {[%clk 0:03:07.8]} 6... b5 {[%clk 0:03:03.3]}
7. Bb3 {[%clk 0:03:09.1]} 7... d6 {[%clk 0:03:04.7]} 8. c3 {[%clk 0:03:10.3]}
8... O-O {[%clk 0:03:04.8]} 9. h3 {[%clk 0:03:11.7]} 9... Na5 {[%clk 0:03:05.6]}
10. Bc2 {[%clk 0:03:12.7]} 10... c5 {[%clk 0:03:06.5]} 11. d4 {[%clk 0:03:13.9]}
11... Qc7 {[%clk 0:03:07.6]} 12. Nbd2 {[%clk 0:03:13.9]} 12... Bd7 {[%clk
0:03:06.3]} 13. Nf1 {[%clk 0:03:13.3]} 13... Rfe8 {[%clk 0:03:04]} 14. Ng3
{[%clk 0:03:08.7]} 14... Nc4 {[%clk 0:02:08.5]} 15. Qe2 {[%clk 0:02:55.6]} 15...
h6 {[%clk 0:02:07.2]} 16. b3 {[%clk 0:02:49.8]} 16... Nb6 {[%clk 0:02:07.4]} 17.
Bb2 {[%clk 0:02:50.2]} 17... c4 {[%clk 0:02:06.9]} 18. d5 {[%clk 0:02:32.2]}
18... a5 {[%clk 0:02:06.5]} 19. Nd2 {[%clk 0:02:29.9]} 19... cxb3 {[%clk
0:01:49.2]} 20. axb3 {[%clk 0:02:30.7]} 20... Rec8 {[%clk 0:01:37.1]} 21. Bd3
{[%clk 0:02:29.8]} 21... Rcb8 {[%clk 0:01:09.6]} 22. Ngf1 {[%clk 0:02:20.5]}
22... a4 {[%clk 0:01:05.1]} 23. b4 {[%clk 0:02:18.1]} 23... g6 {[%clk
0:00:53.7]} 24. Ra3 {[%clk 0:02:17.8]} 24... Nh5 {[%clk 0:00:52.3]} 25. g3
{[%clk 0:02:08.4]} 25... Bxh3 {[%clk 0:00:49.9]} 26. Bxb5 {[%clk 0:02:08.9]}
26... Bd7 {[%clk 0:00:48.4]} 27. Bxd7 {[%clk 0:02:04.6]} 27... Nxd7 {[%clk
0:00:47.2]} 28. Ne3 {[%clk 0:02:02.7]} 28... Bg5 {[%clk 0:00:43]} 29. Rea1
{[%clk 0:01:59.3]} 29... Ndf6 {[%clk 0:00:33.3]} 30. Rxa4 {[%clk 0:01:54.8]}
30... Rxa4 {[%clk 0:00:33.4]} 31. Rxa4 {[%clk 0:01:56.7]} 31... Kg7 {[%clk
0:00:24.6]} 32. Ra6 {[%clk 0:01:41.4]} 32... Qd7 {[%clk 0:00:22.3]} 33. Qf3
{[%clk 0:01:25.3]} 33... Bxe3 {[%clk 0:00:21.3]} 34. Qxe3 {[%clk 0:01:22.3]}
34... Qh3 {[%clk 0:00:19]} 35. Qf3 {[%clk 0:01:21.5]} 35... Ne8 {[%clk
0:00:09.3]} 36. Ra7 {[%clk 0:01:18.5]} 36... Nhf6 {[%clk 0:00:10.3]} 37. Nc4
{[%clk 0:01:16]} 37... h5 {[%clk 0:00:08.7]} 38. Bc1 {[%clk 0:00:59.8]} 38... h4
{[%clk 0:00:07.4]} 39. Bg5 {[%clk 0:01:01.2]} 39... hxg3 {[%clk 0:00:06.8]} 40.
fxg3 {[%clk 0:01:01.1]} 40... Rc8 {[%clk 0:00:05.2]} 41. Nxd6 {[%clk 0:00:50.3]}
41... Nxd6 {[%clk 0:00:05.8]} 42. Bxf6+ {[%clk 0:00:37.8]} 42... Kg8 {[%clk
0:00:06.3]} 43. Bxe5 {[%clk 0:00:35.6]} 1-0

[Event "*** Titled Tuesday Blitz"]
[Site "Chess.com"]
[Date "2019.11.05"]
[Round "6"]
[White "1f3_2g41-0"]
[Black "Oligan22"]
[Result "1/2-1/2"]
[WhiteElo "2292"]
[BlackElo "2459"]
[TimeControl "180+2"]
[EndTime "14:21:23 PST"]
[Termination "Game drawn by agreement"]

1. e4 {[%clk 0:03:01.9]} 1... c6 {[%clk 0:02:59.2]} 2. d4 {[%clk 0:03:02.4]}
2... d5 {[%clk 0:03:00.5]} 3. e5 {[%clk 0:03:03.9]} 3... Bf5 {[%clk 0:03:00.7]}
4. h4 {[%clk 0:03:05.1]} 4... h5 {[%clk 0:03:01]} 5. Bg5 {[%clk 0:03:06]} 5...
Qb6 {[%clk 0:02:57.3]} 6. Bd3 {[%clk 0:03:04]} 6... Qxd4 {[%clk 0:02:54.9]} 7.
Nf3 {[%clk 0:03:03.4]} 7... Qg4 {[%clk 0:02:55.5]} 8. O-O {[%clk 0:03:04.1]}
8... f6 {[%clk 0:02:45.6]} 9. Be3 {[%clk 0:02:38.3]} 9... Nd7 {[%clk 0:02:38.7]}
10. exf6 {[%clk 0:01:49.7]} 10... gxf6 {[%clk 0:02:36.8]} 11. Qd2 {[%clk
0:01:42.1]} 11... Bxd3 {[%clk 0:02:29.1]} 12. Qxd3 {[%clk 0:01:43.7]} 12... Bh6
{[%clk 0:02:27.7]} 13. Nbd2 {[%clk 0:01:27.9]} 13... Bxe3 {[%clk 0:02:23.9]} 14.
Qxe3 {[%clk 0:01:29.8]} 14... e5 {[%clk 0:02:13]} 15. c4 {[%clk 0:01:26.6]}
15... d4 {[%clk 0:02:11.2]} 16. Qd3 {[%clk 0:01:24.7]} 16... Ne7 {[%clk
0:02:09.5]} 17. Ne4 {[%clk 0:01:22.3]} 17... Nf5 {[%clk 0:02:00.8]} 18. Nxf6+
{[%clk 0:01:14.8]} 18... Nxf6 {[%clk 0:01:56.8]} 19. Nxe5 {[%clk 0:01:15.7]}
19... Qf4 {[%clk 0:01:51.7]} 20. Ng6 {[%clk 0:01:15.9]} 20... Qg4 {[%clk
0:01:40.6]} 21. Nxh8 {[%clk 0:01:13.2]} 21... Nxh4 {[%clk 0:01:36.7]} 22. Qg3
{[%clk 0:00:56.2]} 22... Kf8 {[%clk 0:01:23.4]} 23. Qxh4 {[%clk 0:00:54.4]}
23... Kg7 {[%clk 0:01:17]} 24. Qxg4+ {[%clk 0:00:44.7]} 24... hxg4 {[%clk
0:01:18]} 25. Rad1 {[%clk 0:00:42.2]} 25... c5 {[%clk 0:01:17.9]} 26. Rfe1
{[%clk 0:00:43.4]} 26... Rxh8 {[%clk 0:01:16.7]} 27. Re7+ {[%clk 0:00:43.7]}
27... Kg6 {[%clk 0:01:17.7]} 28. Rxb7 {[%clk 0:00:44.9]} 28... g3 {[%clk
0:00:59.4]} 29. fxg3 {[%clk 0:00:45.3]} 29... Ng4 {[%clk 0:00:57.2]} 30. Rxa7
{[%clk 0:00:45.5]} 30... Re8 {[%clk 0:00:57.5]} 31. Ra6+ {[%clk 0:00:45.2]}
31... Kg5 {[%clk 0:00:56.3]} 32. Ra5 {[%clk 0:00:45.9]} 32... Re5 {[%clk
0:00:56.7]} 33. b4 {[%clk 0:00:45.6]} 33... Ne3 {[%clk 0:00:56.5]} 34. Rc1
{[%clk 0:00:44.7]} 34... Kg4 {[%clk 0:00:50.5]} 35. Rxc5 {[%clk 0:00:41.4]}
35... Re8 {[%clk 0:00:48.6]} 36. Kf2 {[%clk 0:00:33.5]} 36... d3 {[%clk
0:00:40.5]} 37. Rd5 {[%clk 0:00:28.8]} 37... Nxd5 {[%clk 0:00:33.5]} 38. cxd5
{[%clk 0:00:30.7]} 38... Re2+ {[%clk 0:00:34.2]} 39. Kf1 {[%clk 0:00:31.2]}
39... Kxg3 {[%clk 0:00:33.5]} 40. Rd1 {[%clk 0:00:23.2]} 40... Rf2+ {[%clk
0:00:32.3]} 41. Kg1 {[%clk 0:00:22.7]} 41... Rxg2+ {[%clk 0:00:33.2]} 42. Kf1
{[%clk 0:00:23.5]} 42... Rf2+ {[%clk 0:00:34.4]} 43. Ke1 {[%clk 0:00:22.7]}
43... Re2+ {[%clk 0:00:35.6]} 44. Kf1 {[%clk 0:00:23.9]} 44... Rf2+ {[%clk
0:00:37]} 45. Kg1 {[%clk 0:00:25.2]} 45... Rg2+ {[%clk 0:00:38.4]} 1/2-1/2

[Event "*** Titled Tuesday Blitz"]
[Site "Chess.com"]
[Date "2019.11.05"]
[Round "6"]
[White "kleinebeer98"]
[Black "nihalsarin"]
[Result "1-0"]
[WhiteElo "2701"]
[BlackElo "2975"]
[TimeControl "180+2"]
[EndTime "14:21:24 PST"]
[Termination "kleinebeer98 won by checkmate"]

1. e4 {[%clk 0:03:01.9]} 1... g6 {[%clk 0:03:00.1]} 2. d4 {[%clk 0:03:00.8]}
2... Bg7 {[%clk 0:03:02]} 3. Nf3 {[%clk 0:03:00.4]} 3... d6 {[%clk 0:03:03.3]}
4. Bc4 {[%clk 0:03:01.7]} 4... e6 {[%clk 0:03:04.6]} 5. Qe2 {[%clk 0:03:02.8]}
5... Ne7 {[%clk 0:03:05.9]} 6. h4 {[%clk 0:03:02.8]} 6... h6 {[%clk 0:03:06.7]}
7. Nc3 {[%clk 0:03:00.8]} 7... a6 {[%clk 0:03:08.1]} 8. a4 {[%clk 0:03:01.5]}
8... Nbc6 {[%clk 0:03:09.4]} 9. Be3 {[%clk 0:03:01.2]} 9... Nb4 {[%clk
0:03:10.7]} 10. Bb3 {[%clk 0:02:57.7]} 10... b6 {[%clk 0:03:12.2]} 11. Qd2
{[%clk 0:02:52.8]} 11... Bb7 {[%clk 0:03:11.2]} 12. O-O {[%clk 0:02:51.9]} 12...
Qd7 {[%clk 0:03:07.7]} 13. Rfe1 {[%clk 0:02:50.3]} 13... Kf8 {[%clk 0:03:03.2]}
14. Ne2 {[%clk 0:02:45.8]} 14... Nbc6 {[%clk 0:03:03.6]} 15. Nf4 {[%clk
0:02:42.6]} 15... Rd8 {[%clk 0:02:56]} 16. d5 {[%clk 0:02:20]} 16... exd5 {[%clk
0:02:55.4]} 17. exd5 {[%clk 0:02:14.3]} 17... Na5 {[%clk 0:02:36]} 18. Ba2
{[%clk 0:02:15.3]} 18... Bxb2 {[%clk 0:02:36.1]} 19. Bd4 {[%clk 0:02:15.7]}
19... Bxa1 {[%clk 0:01:48.8]} 20. Bxa1 {[%clk 0:02:15.8]} 20... Rh7 {[%clk
0:01:49.4]} 21. Nd4 {[%clk 0:02:00.1]} 21... Re8 {[%clk 0:01:22.3]} 22. Nfe6+
{[%clk 0:01:20.8]} 22... Kg8 {[%clk 0:00:43.7]} 23. Qc3 {[%clk 0:00:54.6]} 23...
Nxd5 {[%clk 0:00:35.6]} 24. Bxd5 {[%clk 0:00:52.9]} 24... Bxd5 {[%clk
0:00:37.5]} 25. Nxc7 {[%clk 0:00:51.2]} 25... Rxe1+ {[%clk 0:00:35.8]} 26. Qxe1
{[%clk 0:00:53.1]} 26... Be6 {[%clk 0:00:27.2]} 27. Qc3 {[%clk 0:00:38]} 27...
Nb7 {[%clk 0:00:20.1]} 28. Nxa6 {[%clk 0:00:32.4]} 28... Nc5 {[%clk 0:00:20.9]}
29. Nb8 {[%clk 0:00:27.5]} 29... Qe8 {[%clk 0:00:20.7]} 30. Nbc6 {[%clk
0:00:21.5]} 30... Bd7 {[%clk 0:00:21.3]} 31. Nb4 {[%clk 0:00:18.6]} 31... Nxa4
{[%clk 0:00:21.6]} 32. Qd2 {[%clk 0:00:14.7]} 32... Qe5 {[%clk 0:00:16.6]} 33.
Nd3 {[%clk 0:00:10.6]} 33... Qe4 {[%clk 0:00:17.2]} 34. Nf3 {[%clk 0:00:09.1]}
34... f5 {[%clk 0:00:15.5]} 35. Nf4 {[%clk 0:00:09.8]} 35... Re7 {[%clk
0:00:11.7]} 36. Nxg6 {[%clk 0:00:09.8]} 36... Re6 {[%clk 0:00:11.2]} 37. Qxh6
{[%clk 0:00:10.3]} 37... Re5 {[%clk 0:00:07.4]} 38. Qf8+ {[%clk 0:00:09]} 38...
Kh7 {[%clk 0:00:08.6]} 39. Ng5+ {[%clk 0:00:10.9]} 39... Kxg6 {[%clk 0:00:10.5]}
40. Qf7+ {[%clk 0:00:11.6]} 40... Kh6 {[%clk 0:00:12]} 41. Qh7# {[%clk
0:00:13.5]} 1-0

[Event "*** Titled Tuesday Blitz"]
[Site "Chess.com"]
[Date "2019.11.05"]
[Round "6"]
[White "nitpicker"]
[Black "Alopekos"]
[Result "1-0"]
[WhiteElo "2314"]
[BlackElo "2466"]
[TimeControl "180+2"]
[EndTime "14:21:28 PST"]
[Termination "nitpicker won by resignation"]

1. d4 {[%clk 0:03:01.9]} 1... Nf6 {[%clk 0:03:00.7]} 2. c4 {[%clk 0:03:02.6]}
2... e6 {[%clk 0:03:02.1]} 3. g3 {[%clk 0:03:02.8]} 3... d5 {[%clk 0:03:03.2]}
4. Nf3 {[%clk 0:03:03.2]} 4... Be7 {[%clk 0:03:04.6]} 5. Bg2 {[%clk 0:03:04.1]}
5... O-O {[%clk 0:03:06.3]} 6. O-O {[%clk 0:03:05.1]} 6... dxc4 {[%clk
0:03:07.9]} 7. Ne5 {[%clk 0:03:05.8]} 7... c5 {[%clk 0:03:08.8]} 8. dxc5 {[%clk
0:03:05.1]} 8... Qc7 {[%clk 0:03:10.3]} 9. Nxc4 {[%clk 0:03:01.9]} 9... Qxc5
{[%clk 0:03:10.6]} 10. b3 {[%clk 0:03:03]} 10... Rd8 {[%clk 0:03:10.6]} 11. Qe1
{[%clk 0:02:52.6]} 11... Nc6 {[%clk 0:03:08.8]} 12. Ba3 {[%clk 0:02:42.6]} 12...
Nb4 {[%clk 0:03:09.5]} 13. Nc3 {[%clk 0:02:36.6]} 13... Qh5 {[%clk 0:02:59.8]}
14. Rc1 {[%clk 0:02:27.4]} 14... e5 {[%clk 0:02:52.8]} 15. Nb5 {[%clk
0:02:14.4]} 15... Bh3 {[%clk 0:02:34.3]} 16. Bxb4 {[%clk 0:01:55]} 16... Bxb4
{[%clk 0:01:39.4]} 17. Qxb4 {[%clk 0:01:51.8]} 17... a6 {[%clk 0:01:22.7]} 18.
Nc3 {[%clk 0:01:34.6]} 18... e4 {[%clk 0:00:42]} 19. Ne3 {[%clk 0:01:29.9]}
19... Re8 {[%clk 0:00:32.9]} 20. Rfd1 {[%clk 0:01:17.1]} 20... Bxg2 {[%clk
0:00:18.7]} 21. Kxg2 {[%clk 0:01:14.6]} 21... h6 {[%clk 0:00:20.2]} 22. Ned5
{[%clk 0:00:45]} 22... Ng4 {[%clk 0:00:15.8]} 23. h3 {[%clk 0:00:44]} 23... Nxf2
{[%clk 0:00:16.9]} 24. Kxf2 {[%clk 0:00:39.1]} 24... Qxh3 {[%clk 0:00:18.1]} 25.
Nf4 {[%clk 0:00:33.4]} 25... Qh2+ {[%clk 0:00:12.9]} 26. Ng2 {[%clk 0:00:34.3]}
26... e3+ {[%clk 0:00:13.8]} 27. Kf3 {[%clk 0:00:31.8]} 27... Re6 {[%clk
0:00:12.7]} 28. Nd5 {[%clk 0:00:25.7]} 28... Qh5+ {[%clk 0:00:11.5]} 29. Qg4
{[%clk 0:00:23.6]} 29... Qe5 {[%clk 0:00:09.6]} 30. Qf4 {[%clk 0:00:19.9]} 30...
Qh5+ {[%clk 0:00:10.4]} 31. g4 {[%clk 0:00:17.6]} 31... Qg6 {[%clk 0:00:10.3]}
32. Qf5 {[%clk 0:00:17.4]} 32... h5 {[%clk 0:00:05.6]} 33. Qxg6 {[%clk
0:00:17.2]} 33... fxg6 {[%clk 0:00:06.6]} 34. Ngxe3 {[%clk 0:00:15.2]} 34...
Rf8+ {[%clk 0:00:07.5]} 35. Kg3 {[%clk 0:00:15.7]} 35... hxg4 {[%clk 0:00:04.9]}
36. Rd4 {[%clk 0:00:15.9]} 36... Rf7 {[%clk 0:00:02.5]} 37. Rxg4 {[%clk
0:00:16.3]} 37... Kh7 {[%clk 0:00:03.3]} 38. Rh1+ {[%clk 0:00:16.5]} 38... Kg8
{[%clk 0:00:04.6]} 39. Rgh4 {[%clk 0:00:17.5]} 39... Rf8 {[%clk 0:00:03.6]} 40.
Rh8+ {[%clk 0:00:17.9]} 1-0

[Event "*** Titled Tuesday Blitz"]
[Site "Chess.com"]
[Date "2019.11.05"]
[Round "6"]
[White "Knight8700"]
[Black "Kimster98"]
[Result "1/2-1/2"]
[WhiteElo "2431"]
[BlackElo "2545"]
[TimeControl "180+2"]
[EndTime "14:21:29 PST"]
[Termination "Game drawn by repetition"]

1. e4 {[%clk 0:03:01.4]} 1... e5 {[%clk 0:02:59.9]} 2. Nf3 {[%clk 0:03:02.5]}
2... Nf6 {[%clk 0:03:00.6]} 3. d4 {[%clk 0:02:53.3]} 3... Nxe4 {[%clk
0:03:00.9]} 4. dxe5 {[%clk 0:02:52.8]} 4... d5 {[%clk 0:03:01.3]} 5. Nbd2 {[%clk
0:02:42.7]} 5... Qd7 {[%clk 0:02:37.3]} 6. Bd3 {[%clk 0:02:14.2]} 6... Nxd2
{[%clk 0:02:37.4]} 7. Bxd2 {[%clk 0:02:12.7]} 7... c5 {[%clk 0:02:35.5]} 8. O-O
{[%clk 0:01:49.3]} 8... Nc6 {[%clk 0:02:29.4]} 9. Re1 {[%clk 0:01:31.3]} 9...
Be7 {[%clk 0:02:30.3]} 10. c3 {[%clk 0:01:29]} 10... O-O {[%clk 0:02:25.3]} 11.
h3 {[%clk 0:01:30]} 11... Qc7 {[%clk 0:01:58.9]} 12. Bf4 {[%clk 0:01:23.9]}
12... Be6 {[%clk 0:01:59]} 13. Qd2 {[%clk 0:01:20.3]} 13... Qd7 {[%clk
0:01:57.3]} 14. Rad1 {[%clk 0:01:19.4]} 14... Rad8 {[%clk 0:01:48.8]} 15. Ng5
{[%clk 0:00:55.8]} 15... Bxg5 {[%clk 0:01:24.3]} 16. Bxg5 {[%clk 0:00:54]} 16...
Rc8 {[%clk 0:01:25.7]} 17. Bf6 {[%clk 0:00:51.6]} 17... Bf5 {[%clk 0:01:14.6]}
18. h4 {[%clk 0:00:41.7]} 18... Bxd3 {[%clk 0:00:59.1]} 19. Qxd3 {[%clk
0:00:34.6]} 19... gxf6 {[%clk 0:00:56.7]} 20. exf6 {[%clk 0:00:35.8]} 20... Kh8
{[%clk 0:00:57.8]} 21. Qxd5 {[%clk 0:00:33.4]} 21... Qxd5 {[%clk 0:00:54]} 22.
Rxd5 {[%clk 0:00:35.3]} 22... Rcd8 {[%clk 0:00:12.9]} 23. Rxc5 {[%clk
0:00:36.1]} 23... Rd6 {[%clk 0:00:13.3]} 24. Rf5 {[%clk 0:00:32.4]} 24... h6
{[%clk 0:00:14.5]} 25. b4 {[%clk 0:00:31.1]} 25... Kh7 {[%clk 0:00:13.5]} 26. b5
{[%clk 0:00:31.5]} 26... Nd8 {[%clk 0:00:12.5]} 27. h5 {[%clk 0:00:29.7]} 27...
Ne6 {[%clk 0:00:13.4]} 28. Re3 {[%clk 0:00:24.3]} 28... Rc8 {[%clk 0:00:10.3]}
29. Rg3 {[%clk 0:00:22.4]} 29... Rdd8 {[%clk 0:00:09.2]} 30. Kh2 {[%clk
0:00:19.2]} 30... Rg8 {[%clk 0:00:08.9]} 31. Re3 {[%clk 0:00:19]} 31... b6
{[%clk 0:00:09.2]} 32. a4 {[%clk 0:00:20]} 32... Rc4 {[%clk 0:00:07.6]} 33. Rd5
{[%clk 0:00:21.1]} 33... Rc7 {[%clk 0:00:03.5]} 34. g3 {[%clk 0:00:17.8]} 34...
Rgc8 {[%clk 0:00:04.2]} 35. f4 {[%clk 0:00:16.6]} 35... Rxc3 {[%clk 0:00:03.5]}
36. Rxc3 {[%clk 0:00:17.9]} 36... Rxc3 {[%clk 0:00:05.4]} 37. Rd7 {[%clk
0:00:18.8]} 37... Kg8 {[%clk 0:00:06.8]} 38. Rxa7 {[%clk 0:00:20.2]} 38... Ra3
{[%clk 0:00:06.6]} 39. Ra8+ {[%clk 0:00:19.9]} 39... Kh7 {[%clk 0:00:07.5]} 40.
Ra7 {[%clk 0:00:21.4]} 40... Kg8 {[%clk 0:00:09]} 41. Ra8+ {[%clk 0:00:22.8]}
41... Nf8 {[%clk 0:00:10.4]} 42. Ra6 {[%clk 0:00:24.3]} 42... Ne6 {[%clk
0:00:09.1]} 43. Ra8+ {[%clk 0:00:23.4]} 1/2-1/2

[Event "*** Titled Tuesday Blitz"]
[Site "Chess.com"]
[Date "2019.11.05"]
[Round "6"]
[White "timator"]
[Black "GelmanAlexander"]
[Result "0-1"]
[WhiteElo "2661"]
[BlackElo "2527"]
[TimeControl "180+2"]
[EndTime "14:21:32 PST"]
[Termination "GelmanAlexander won by resignation"]

1. Nf3 {[%clk 0:03:01.9]} 1... d6 {[%clk 0:03:00]} 2. d4 {[%clk 0:02:59.2]} 2...
Nd7 {[%clk 0:03:00.5]} 3. c4 {[%clk 0:03:01.1]} 3... c5 {[%clk 0:03:01.4]} 4. g3
{[%clk 0:03:01]} 4... Ngf6 {[%clk 0:02:49.6]} 5. Bg2 {[%clk 0:03:01.8]} 5...
cxd4 {[%clk 0:02:50.3]} 6. Nxd4 {[%clk 0:03:02.7]} 6... a6 {[%clk 0:02:51.4]} 7.
O-O {[%clk 0:03:03.5]} 7... e6 {[%clk 0:02:53]} 8. b3 {[%clk 0:03:04.2]} 8...
Be7 {[%clk 0:02:54.6]} 9. Nc3 {[%clk 0:03:04.7]} 9... O-O {[%clk 0:02:56.3]} 10.
Bb2 {[%clk 0:03:04.8]} 10... Qc7 {[%clk 0:02:57.7]} 11. Rc1 {[%clk 0:03:05.5]}
11... Ne5 {[%clk 0:02:58.7]} 12. h3 {[%clk 0:03:06]} 12... Bd7 {[%clk
0:02:59.8]} 13. Qd2 {[%clk 0:03:05.1]} 13... Rac8 {[%clk 0:02:59.7]} 14. Rfd1
{[%clk 0:03:05.7]} 14... Rfd8 {[%clk 0:02:58.4]} 15. Ne4 {[%clk 0:02:58.7]}
15... Ne8 {[%clk 0:02:53.7]} 16. Nf3 {[%clk 0:02:37.7]} 16... Ng6 {[%clk
0:02:40]} 17. h4 {[%clk 0:02:36]} 17... h6 {[%clk 0:02:37.8]} 18. h5 {[%clk
0:02:34.8]} 18... Nf8 {[%clk 0:02:38.1]} 19. Qe3 {[%clk 0:02:27]} 19... Qb8
{[%clk 0:02:22.8]} 20. Bd4 {[%clk 0:02:25.3]} 20... b5 {[%clk 0:02:21]} 21. Bb6
{[%clk 0:02:22.8]} 21... bxc4 {[%clk 0:01:49.2]} 22. bxc4 {[%clk 0:02:20.1]}
22... Ba4 {[%clk 0:01:45.7]} 23. Bxd8 {[%clk 0:02:18.8]} 23... Bxd8 {[%clk
0:01:44]} 24. Rf1 {[%clk 0:02:19.5]} 24... Bb6 {[%clk 0:01:44.2]} 25. Qa3 {[%clk
0:02:20.3]} 25... Bc6 {[%clk 0:01:42.9]} 26. Nfd2 {[%clk 0:02:11]} 26... Qa8
{[%clk 0:01:26.7]} 27. Bf3 {[%clk 0:01:35.9]} 27... Rd8 {[%clk 0:01:08.6]} 28.
Rb1 {[%clk 0:01:34]} 28... Nd7 {[%clk 0:01:03.8]} 29. Rfd1 {[%clk 0:01:10.7]}
29... Qa7 {[%clk 0:00:53.2]} 30. Rf1 {[%clk 0:00:52.3]} 30... Ne5 {[%clk
0:00:50.4]} 31. Nf6+ {[%clk 0:00:47.3]} 31... Nxf6 {[%clk 0:00:49.5]} 32. Bxc6
{[%clk 0:00:48.5]} 32... Nxc6 {[%clk 0:00:50.9]} 33. Nf3 {[%clk 0:00:37.4]}
33... Bc5 {[%clk 0:00:51.3]} 34. Qa4 {[%clk 0:00:35.3]} 34... Rc8 {[%clk
0:00:50.6]} 35. Kg2 {[%clk 0:00:34.2]} 35... Nxh5 {[%clk 0:00:51.2]} 36. g4
{[%clk 0:00:25.1]} 36... Nf4+ {[%clk 0:00:51.8]} 37. Kh1 {[%clk 0:00:23.7]}
37... Nxe2 {[%clk 0:00:53.3]} 38. Qc2 {[%clk 0:00:22.3]} 38... Ned4 {[%clk
0:00:51.6]} 39. Nxd4 {[%clk 0:00:23.5]} 39... Nxd4 {[%clk 0:00:53.5]} 40. Qe4
{[%clk 0:00:24.8]} 40... Qa8 {[%clk 0:00:43.4]} 41. Qxa8 {[%clk 0:00:16.3]}
41... Rxa8 {[%clk 0:00:44.4]} 42. Kg2 {[%clk 0:00:17.5]} 42... a5 {[%clk
0:00:45.1]} 43. Rb7 {[%clk 0:00:18]} 43... a4 {[%clk 0:00:46.3]} 44. Rfb1 {[%clk
0:00:19.1]} 44... a3 {[%clk 0:00:47]} 45. Rd7 {[%clk 0:00:20.1]} 45... Ra7
{[%clk 0:00:43.6]} 46. Rd8+ {[%clk 0:00:19.6]} 46... Kh7 {[%clk 0:00:44.7]} 47.
f4 {[%clk 0:00:20.8]} 47... Kg6 {[%clk 0:00:43.2]} 48. Rdb8 {[%clk 0:00:17.7]}
48... Ra4 {[%clk 0:00:42.9]} 49. Rc1 {[%clk 0:00:15.5]} 49... Ne2 {[%clk
0:00:44.2]} 50. Rc2 {[%clk 0:00:12]} 50... Nxf4+ {[%clk 0:00:45.1]} 51. Kf3
{[%clk 0:00:13.6]} 51... Nd3 {[%clk 0:00:45.8]} 52. Ke4 {[%clk 0:00:15]} 0-1